Cogmind - Beta 16 @@@ ROGUE MODE // 2026.01.02 @ 00:25:01 Player: jam Result: Destroyed by Y-45 Defender with Heavy Assault Rifle Performance ------------- Evolutions (1) 500 Regions Visited (4) 800 Robots Destroyed (39) 195 Value Destroyed (1009) 1009 Prototype IDs (4) 80 Alien Tech Used (0) 0 Bonus (200) 200 TOTAL SCORE: 2784 Bonus ------- Entered Garrisons 200 Cogmind --------- Core Integrity 0/400 Matter 108/300 Energy 100/100 System Corruption 9% Temperature Cool (9) Movement Core (350) Ox6 Location -9/Garrison Parts ------- > --- POWER (1) -------- (None) > --- PROPULSION (4) --- (None) > --- UTILITY (2) ------ Large Storage Unit > --- WEAPON (2) ------- (None) > --- INVENTORY (15) --- Heat Sink Medium Storage Unit Sensor Array Drone Bay (2/2) EMP Blaster Scatter Rocket Array Peak State ------------ > --- POWER ------------ Improved Ion Engine > --- PROPULSION ------- Aluminum Leg Aluminum Leg Aluminum Leg Aluminum Leg > --- UTILITY ---------- Heat Sink Large Storage Unit > --- WEAPON ----------- Improved EM Shotgun Improved Light Cannon > --- INVENTORY -------- Ion Engine Wheel Compact Wheel Medium Storage Unit Sensor Array Medium Armor Plating Small Laser Assault Rifle Light Assault Rifle EMP Blaster Grenade Launcher [Rating: 14] Favorites ----------- Power Ion Engine Engine Ion Engine Propulsion Aluminum Leg Leg Aluminum Leg Wheel Wheel Utility Large Storage Unit Device Heat Sink Storage Large Storage Unit Protection Medium Armor Plating Weapon Medium Laser Energy Gun Medium Laser Ballistic Gun Assault Rifle Ballistic Cannon Improved Light Cannon Launcher Scatter Rocket Array Build | -11 -10 -9 -9 -9 ------- Run | Yrd Mat Mat Sto Gar Slots Evolved 2 | . . 2 . . Power . | . . . . . Propulsion 2 | . . 2 . . Utility . | . . . . . Weapon . | . . . . . Parts Attached 31 | 6 4 6 15 . Power 6 | 1 1 1 3 . Engine 6 | 1 1 1 3 . Core . | . . . . . Reactor . | . . . . . Propulsion 9 | 2 . 2 5 . Treads . | . . . . . Leg 7 | 2 . 2 3 . Wheel 2 | . . . 2 . Hover . | . . . . . Flight . | . . . . . Utility 7 | 1 2 2 2 . Device 4 | . 2 1 1 . Storage 2 | 1 . 1 . . Processor . | . . . . . Hackware . | . . . . . Protection 1 | . . . 1 . Artifact . | . . . . . Weapon 9 | 2 1 1 5 . Energy Gun 4 | 1 1 1 1 . Energy Cannon . | . . . . . Ballistic Gun 2 | 1 . . 1 . Ballistic Cannon 1 | . . . 1 . Launcher 2 | . . . 2 . Special Weapon . | . . . . . Impact Weapon . | . . . . . Slashing Weapon . | . . . . . Piercing Weapon . | . . . . . Special Melee Weapon . | . . . . . Unidentified Prototypes 2 | . . 1 1 . Corrupted Parts 1 | . . . 1 . System Corruption 2 | . . . 2 . Parts Lost 16 | . . 1 14 1 Power 2 | . . . 2 . Propulsion 7 | . . . 7 . Utility 2 | . . 1 1 . Weapon 5 | . . . 4 1 Highest Loss Streak 6 | . . 1 6 1 To Critical Strikes . | . . . . . Average Backups 7 | 2 4 7 8 6 Power . | . . 1 . . Propulsion 1 | . 2 1 . . Utility 2 | . . 1 4 4 Weapon 2 | . 1 2 3 2 Tool/Special . | . . . . . Unused Backups 5 | . . . . 5 Power . | . . . . . Propulsion . | . . . . . Utility 4 | . . . . 4 Weapon 1 | . . . . 1 Tool/Special . | . . . . . Average Slot Usage (%) 72 | . 98 98 66 21 Engine 9 | . 14 11 8 . Leg 20 | . 28 43 14 . Wheel 3 | . . . 6 . Device 6 | . 12 10 4 . Storage 11 | . 14 11 11 11 Protection 1 | . . . 2 . Energy Gun 9 | . 14 16 7 . Ballistic Gun 6 | . 14 5 4 10 Ballistic Cannon 1 | . . . 2 . Launcher 1 | . . . 2 . Peak Build Rating 14 | 6 9 13 14 3 Average Rating 8 | 4 7 11 9 2 On Entrance 6 | . 6 9 13 3 Avg Prop Armor Cover (%) 4 | . . . 4 . Naked Turns . | . . . . . Heaviest Build 43 | 13 14 33 43 22 Greatest Support 40 | 20 20 40 40 3 Greatest Overweight (x) 13 | . . . 13 7 Average Overweight (x) 1 | . . . 2 6 Largest Inventory Capacity 15 | 8 8 15 15 15 Average Capacity 13 | 7 8 14 15 15 Most Carried 13 | 5 7 9 13 6 Average Carried 7 | 3 4 7 8 6 Final Capacity 15 | 8 8 15 15 15 Final Carried 9 | 4 7 9 6 6 Class Distribution -------------------- 65% | Mutant 34% | Scavenger-Mutant Dominant Class ---------------- Mutant | -10/Materials Scavenger-Mutant | -9/Materials Mutant | -9/Storage Mutant | -9/Garrison Resources | -11 -10 -9 -9 -9 ----------- Run | Yrd Mat Mat Sto Gar Matter Collected 722 | 116 126 152 328 . Remotely . | . . . . . Salvage Created 1159 | . 126 216 817 . Parts 78 | . 7 12 59 . Haulers Intercepted 2 | . . . 2 . Recyclers Shooed 4 | . . . 4 . Parts Field Recycled . | . . . . . Retrieved Matter . | . . . . . Parts Self-Destructed . | . . . . . Prevented . | . . . . . Parts Restored . | . . . . . Kills | -11 -10 -9 -9 -9 ------- Run | Yrd Mat Mat Sto Gar Combat Hostiles Destroyed 26 | . 3 6 17 . Guns 14 | . 2 6 6 . Cannons 3 | . . . 3 . AOE 7 | . . . 7 . Classes Destroyed 9 | . 1 3 5 . Worker 2 | . . . 2 . Builder 6 | . . . 6 . Hauler 2 | . . . 2 . Recycler 1 | . . . 1 . Watcher 2 | . . 1 1 . Swarmer 3 | . . 3 . . Grunt 18 | . 3 2 13 . Duelist 1 | . . . 1 . Sentry 4 | . . 1 3 . Best Kill Streak 8 | . 2 3 8 . Combat Bots Only 4 | . 2 3 4 . Max Kills in Single Turn 5 | . 1 1 5 . Gunslinging . | . . . . . Exploded 3 | . . . 3 . Melee . | . . . . . Uniques/NPCs Destroyed . | . . . . . Combat | -11 -10 -9 -9 -9 -------- Run | Yrd Mat Mat Sto Gar Hostile Shots Fired 226 | . 38 36 130 22 Missed 79 | . 14 12 43 10 Hits 147 | . 24 24 87 12 Melee 1 | . . . 1 . Projectile 146 | . 24 24 86 12 Critical Strikes 2 | . . . 2 . Damage Taken 2124 | . 348 279 1320 177 Core 530 | . 129 30 268 103 Absorbed by Shields . | . . . . . Core Remaining (%) 74 | 100 48 . . . Volleys Fired 123 | 2 18 26 77 . Largest 2 | 2 2 2 2 . Hottest 95 | 70 70 95 80 . Shots Fired 208 | 3 36 42 127 . Gun 177 | 3 36 42 96 . Cannon 23 | . . . 23 . Launcher 8 | . . . 8 . Special . | . . . . . Kinetic 100 | 2 18 19 61 . Thermal 73 | 1 18 19 35 . Explosive 8 | . . . 8 . Electromagnetic 27 | . . 4 23 . Robot Hit Streak 9 | 3 6 7 9 . Robot Miss Streak 11 | . 2 5 11 . Penetration Max . | . . . . . Secondary Targets 2 | . 1 . 1 . Max Gunslinging Chain 1 | . 1 . 1 . Shots Hit Robots 132 | 3 25 25 79 . Core Hits 78 | . 5 12 61 . Critical Kills . | . . . . . Critical Parts Destroyed . | . . . . . Critical Strikes 2 | . 2 . . . Burn 2 | . 2 . . . Melee Attacks . | . . . . . Impact . | . . . . . Slashing . | . . . . . Piercing . | . . . . . Sneak Attacks . | . . . . . Combat Hostiles . | . . . . . Follow-up Attacks . | . . . . . Damage Inflicted 2880 | 29 268 298 2282 3 Guns 1485 | 29 268 298 890 . Cannons 299 | . . . 299 . Explosions 1092 | . . . 1092 . Melee . | . . . . . Ramming 4 | . . . 1 3 Kinetic 850 | 16 116 100 618 . Thermal 693 | 13 152 163 365 . Explosive 996 | . . . 996 . Electromagnetic 337 | . . 35 302 . Impact . | . . . . . Slashing . | . . . . . Piercing . | . . . . . Highest Corruption 9 | . . . 7 9 Average Corruption 4 | . . . 3 7 Corruption Purged . | . . . . . Corruption Blocked . | . . . . . Effects 12 | . . . 8 4 Message Errors 1 | . . . . 1 Matter Fused 2 | . . . 1 1 Heat Flow Errors 2 | . . . 2 . Energy Discharges 2 | . . . 2 . Parts Rejected 1 | . . . 1 . Data Loss (minor) 2 | . . . . 2 Data Loss (major) 1 | . . . 1 . Misfires 1 | . . . 1 . Overload Shots . | . . . . . Overflow Damage 6 | . . . 6 . Projectiles . | . . . . . Explosions 6 | . . . 6 . Melee . | . . . . . Knockbacks 4 | . . . 4 . Impact . | . . . . . Kinetic 4 | . . . 4 . Secondary . | . . . . . Self-Inflicted Damage 156 | . . . 155 1 Shots 6 | . . . 6 . Rammed 4 | . . . 1 3 Targets Rammed 4 | . . . 1 3 Kicked . | . . . . . Crushed . | . . . . . Highest Temperature 258 | 30 40 35 258 . Average Temperature 42 | 18 16 11 59 . Received Heat Transfer 852 | . 189 54 564 45 Siege Activations . | . . . . . Martial Activations . | . . . . . Shielding Activations . | . . . . . Robots Disrupted . | . . . . . Combat Hostiles . | . . . . . Robots Corrupted 1 | . . . 1 . Combat Hostiles 1 | . . . 1 . Parts Fried 1 | . . . 1 . Impact Corruptions . | . . . . . Robots Melted 1 | . 1 . . . Combat Hostiles 1 | . 1 . . . Parts Melted 2 | . 2 . . . Heat Transferred 1885 | 37 592 481 775 . Parts Sabotaged . | . . . . . Parts Stolen . | . . . . . Parts Stripped . | . . . . . Power Chain Reactions 2 | . . . 2 . Alert | -11 -10 -9 -9 -9 ------- Run | Yrd Mat Mat Sto Gar Maximum Alert Level 1 | . . . 1 . Low Security (%) 79 | 100 100 100 62 100 Level 1 20 | . . . 37 . Level 2 . | . . . . . Level 3 . | . . . . . Level 4 . | . . . . . Level 5 . | . . . . . High Security . | . . . . . Max Security . | . . . . . Peak Influence 311 | . 60 110 311 152 Initial 152 | . . 20 24 152 Average 93 | . 24 52 121 151 Influence Increases 974 | . 110 171 693 . Destroy 0b10 Robot/C 520 | . 60 120 340 . Destroy 0b10 Robot/NC 65 | . . 5 60 . Destroy Leader 138 | . 20 32 86 . Successful Hack 28 | . . 14 14 . Disable Machine 60 | . . . 60 . Destroy Structure 133 | . . . 133 . Lose Combat Pursuer 30 | . 30 . . . Influence Decreases 832 | . 60 164 516 92 Entered New Map 145 | . . 30 33 82 Time Decay 527 | . 60 130 337 . Lost Part 140 | . . 4 126 10 Lost Ally 20 | . . . 20 . Squads Dispatched 5 | . 1 1 3 . Investigation . | . . . . . Extermination . | . . . . . Reinforcement 3 | . 1 1 1 . Assault . | . . . . . Garrison 2 | . . . 2 . Intercept . | . . . . . Searches Triggered . | . . . . . Construction Impeded . | . . . . . Haulers Reinforced . | . . . . . Active Scanning Responses . | . . . . . Cargo Convoy Interrupts . | . . . . . Stealth | -11 -10 -9 -9 -9 --------- Run | Yrd Mat Mat Sto Gar Distress Signals 5 | . 2 . 3 . Communications Jammed . | . . . . . Distress Signals . | . . . . . Times Spotted 34 | . 3 9 20 2 Peak Tracking Total 4 | . 3 4 4 2 Tactical Retreats 1 | . 1 . . . Traps | -11 -10 -9 -9 -9 ------- Run | Yrd Mat Mat Sto Gar Traps Triggered 3 | . . . 3 . Indirectly . | . . . . . Trap Hack Attempts . | . . . . . Triggered . | . . . . . Disarmed . | . . . . . Reprogrammed . | . . . . . Reused . | . . . . . Traps Extracted . | . . . . . Installed . | . . . . . Triggered . | . . . . . Machines | -11 -10 -9 -9 -9 ---------- Run | Yrd Mat Mat Sto Gar Machines Disabled 4 | . . . 4 . Max in Single Turn 3 | . . . 3 . Machines Repaired . | . . . . . Machines Dismantled . | . . . . . Machines Sabotaged . | . . . . . Overloaded Fab Kills . | . . . . . Hacking | -11 -10 -9 -9 -9 --------- Run | Yrd Mat Mat Sto Gar Machines Accessed 8 | . 1 1 6 . Terminals 6 | . . 1 5 . Fabricators . | . . . . . Repair Stations . | . . . . . Recycling Units 1 | . 1 . . . Scanalyzers . | . . . . . Garrison Access 1 | . . . 1 . Total Hacks 13 | . 2 3 8 . Successful 9 | . 2 3 4 . Failed 4 | . . . 4 . Catastrophic 2 | . . . 2 . Database Lockouts . | . . . . . Manual 1 | . . . 1 . Terminals 10 | . . 3 7 . Fabricators . | . . . . . Repair Stations . | . . . . . Recycling Units 2 | . 2 . . . Scanalyzers . | . . . . . Garrison Access 1 | . . . 1 . Terminal Hacks 6 | . . 3 3 . Prototype ID Bank 1 | . . 1 . . Open Door 2 | . . . 2 . Emergency Access Points 1 | . . 1 . . Zone Layout 2 | . . 1 1 . Fabricator Hacks . | . . . . . Repair Station Hacks . | . . . . . Recycling Unit Hacks 2 | . 2 . . . Report Inventory 1 | . 1 . . . Retrieve Matter 1 | . 1 . . . Scanalyzer . | . . . . . Garrison Access Hacks 1 | . . . 1 . Unlock Access 1 | . . . 1 . Unauthorized Hacks . | . . . . . Terminals . | . . . . . Fabricators . | . . . . . Repair Stations . | . . . . . Recycling Units . | . . . . . Scanalyzers . | . . . . . Garrison Access . | . . . . . Data Cores Recovered . | . . . . . Used . | . . . . . Hacking Detections 5 | . . 1 4 . Full Trace Events . | . . . . . Feedback Events . | . . . . . Feedback Blocked . | . . . . . Robot Schematics Acquired . | . . . . . Robots Built . | . . . . . Authchips . | . . . . . Time . | . . . . . Total Robot Build Rating . | . . . . . Part Schematics Acquired . | . . . . . Parts Built . | . . . . . Authchips . | . . . . . Time . | . . . . . Total Part Build Rating . | . . . . . Part Studies Acquired . | . . . . . Parts Repaired . | . . . . . Time . | . . . . . Parts Recycled . | . . . . . Recycled Matter . | . . . . . Retrieved Matter . | . . . . . Retrieved Components . | . . . . . Parts Scanalyzed . | . . . . . Part Schematics Acquired . | . . . . . Parts Damaged . | . . . . . Bothacking | -11 -10 -9 -9 -9 ------------ Run | Yrd Mat Mat Sto Gar Used RIF Installer . | . . . . . Robots Hacked . | . . . . . Non-combat . | . . . . . Combat . | . . . . . Robot Hacks Applied . | . . . . . Relay Couplers Released . | . . . . . Fabnet Peak Effective % . | . . . . . Robots Rewired . | . . . . . Allies Hacked . | . . . . . Hacks Repelled . | . . . . . Allies | -11 -10 -9 -9 -9 -------- Run | Yrd Mat Mat Sto Gar Total Allies . | . . . . . Largest Group . | . . . . . Highest-Rated Group . | . . . . . Highest-Rated Ally . | . . . . . Total Orders . | . . . . . Ally Attacks . | . . . . . Total Damage . | . . . . . Kills . | . . . . . Allies Corrupted . | . . . . . Allies Melted . | . . . . . Intel | -11 -10 -9 -9 -9 ------- Run | Yrd Mat Mat Sto Gar Active Infowar (turns) . | . . . . . Robot Analysis Total . | . . . . . Derelict Logs Recovered . | . . . . . Drone Launches 3 | . . . 3 . Drone Recoveries 1 | . . . 1 . Exploration | -11 -10 -9 -9 -9 ------------- Run | Yrd Mat Mat Sto Gar Turns Passed 1442 | 70 169 279 801 123 Spaces Moved 601 | 52 89 165 267 28 Core 92 | 17 . . 47 28 Treads . | . . . . . Legs 444 | 35 89 165 155 . Wheels 65 | . . . 65 . Hover . | . . . . . Flight . | . . . . . Fastest Speed 50 | 50 120 120 90 350 Average Speed 169 | 97 120 120 206 396 Slowest Speed 700 | 120 120 120 700 400 Overloaded Moves . | . . . . . Propulsion Burnouts . | . . . . . Robots Hopped . | . . . . . Potential Cave-ins 1 | . . . 1 . Cave-ins Triggered 1 | . . . 1 . Exploration Rate (%) 19 | 4 25 13 47 6 Regions Visited 4 Branch Regions 1 Pre-discovered Areas . | . . . . . Known Exits Taken 1 | . . . 1 . Unknown Exits Taken 3 | 1 1 1 . . Scrap Searched . | . . . . . Spaces Dug . | . . . . . Terrain Destroyed 165 | . . . 165 . Melee . | . . . . . Projectile 1 | . . . 1 . AOE 164 | . . . 164 . Terrain Rammed . | . . . . . Walls Destroyed . | . . . . . Machines Disabled . | . . . . . Actions | -11 -10 -9 -9 -9 --------- Run | Yrd Mat Mat Sto Gar Total 812 | 69 120 209 383 31 Wait . | . . . . . Move 598 | 51 88 164 267 28 Hop . | . . . . . Pick Up 39 | 10 7 9 13 . Fast Attach . | . . . . . Attach 29 | 6 4 4 15 . Detach 1 | . . . 1 . Swap 7 | . . 2 5 . Drop 11 | . 3 4 4 . Fire 123 | 2 18 26 77 . Melee . | . . . . . Ram 4 | . . . 1 3 Kick . | . . . . . Crush . | . . . . . Escape Stasis . | . . . . . Rewire . | . . . . . Trap . | . . . . . Miscellaneous . | . . . . . Route ------- -11/Scrapyard -10/Materials (discovered 2 exits: *Mat / [*Min]) -9/Materials -9/Storage -9/Garrison History --------- Turn | Location | Event 9 | -11/Scrapyard | Discovered new exit (range 15) 71 | -11/Scrapyard | Entered Materials 87 | -10/Materials | Discovered new exit (range 16) 151 | -10/Materials | Core integrity fell below 50% 172 | -10/Materials | Discovered new exit (range 5) 240 | -10/Materials | Entered another Materials area 240 | -9/Materials | Evolved 2 slots: Propulsion x2 270 | -9/Materials | Discovered new exit (range 17) 311 | -9/Materials | Build established: Mutant 519 | -9/Materials | Entered Storage 619 | -9/Storage | Build established: Scavenger-Mutant 783 | -9/Storage | Lost 6 parts (1p3n2w) 939 | -9/Storage | Core integrity fell below 50% 988 | -9/Storage | Found Prototype Launcher 989 | -9/Storage | Identified Scatter Rocket Array 1007 | -9/Storage | Garrison activated, responded to threat 1107 | -9/Storage | Garrison activated, responded to threat 1183 | -9/Storage | Crushed by falling debris 1214 | -9/Storage | Lost 4 parts (1p1n1u1w) 1217 | -9/Storage | Build established: Mutant 1320 | -9/Storage | Identified exit to Garrison 1320 | -9/Storage | Entered Garrison 1410 | -9/Garrison | Triggered checkpoint 1437 | -9/Garrison | Core integrity fell below 20% 1443 | -9/Garrison | Destroyed by Y-45 Defender with Heavy Assault Rifle Last Messages --------------- 01299_ K-01 Serf collects debris. 01318_ The unstable cave ceiling collapses. 01320_ Connecting with Garrison Access... >>Unlock Access door unlocked. 01320_ EXIT=UNLOCKED: GARRISON LOCATION=GARRISON GOAL=ESCAPE 01325_ System corrupted: Component data lost. 01349_ System corrupted: Matter fused (-10). 01382_ System corrupted: Component data lost. 01410_ Beams of light sweep through the air. An alarm sounds. 01420_ Slammed into Y-45 Defender. 01420_ Assault Rifle broken. 01420_ Destabilizing: Short circuit. 01424_ Slammed into Y-45 Defender. 01428_ Destabilizing: System corrupted (+2). 01429_ HF8|ZTGZ>OQ8QSNFEINXT5#7DHIEU,RV::J7% 01436_ Broken Assault Rifle destroyed. Map ----- +----------------------------------------------------+ | ?????????????????????????????????????????????????? | | ?????????????????????????????????????????????????? | | ?????????????????????????????????????????????????? | | ?????????????????????????????????????????????????? | | ?????????????????????????????????????????????????? | | ?????????????????????????????????????????????????? | | ?????????????????????????????????????????????????? | | ?????????????????????????????????????????????????? | | ?????????????????????????????????????????????????? | | ?????????????????????????????????????????????????? | | ???????????????????????????? ????????????????????? | | ???????????????????????????? ????????????????????? | | ???????????????????????????? ????????????????????? | | ???????????????????????????? ????????????????????? | | ???????????????????????????? ????????????????????? | | ????????????????????????????^????????????????????? | | ???????????????????????????? ????????????????????? | | ???????????????????????????# #???????????????????? | | ???????????????????????????# #???????????????????? | | ???????#####??????????????? #???????????????????? | | ???????# #??????????????? #???????????????????? | | ???????# ###########????? #???????????????????? | | ???????# #?????# #???????????????????? | | ???????# #?????# #?####??????????????? | | ???????############ ####### ##"T"#??????????????? | | ??????????????????# Y @ Y "#??????????????? | | ?????????????????#T ##############??????????????? | | ?????????????????## #???????????????????????????? | | ??????????????????# #???????????????????????????? | | ??????????????????# #???????????????????????????? | | ??????????????????# #???????????????????????????? | | ??????????????????# #???????????????????????????? | | ??????????????????# #???????????????????????????? | | ??????????????????#^ #???????????????????????????? | | ??????????????????# #???????????????????????????? | | ??????????????????# #???????????????????????????? | | ??????????????????# ????????????????????????????? | | ??????????????????# ????????????????????????????? | | ??????????????????? ????????????????????????????? | | ???????????????????##????????????????????????????? | | ?????????????????????????????????????????????????? | | ?????????????????????????????????????????????????? | | ?????????????????????????????????????????????????? | | ?????????????????????????????????????????????????? | | ?????????????????????????????????????????????????? | | ?????????????????????????????????????????????????? | | ?????????????????????????????????????????????????? | | ?????????????????????????????????????????????????? | | ?????????????????????????????????????????????????? | | ?????????????????????????????????????????????????? | +----------------------------------------------------+ Best States ------------- Heat Dissipation 42 Energy Generation 12 Energy Capacity 265 Matter Stores 300 Matter Capacity 300 Sight Range 16 Terrain Scan Density 10 Armor Coverage 225 Evasion (%) 55 Item Schematics ----------------- None Robot Schematics ------------------ None Fabricated ------------ Nothing Repaired ---------- Nothing Studied --------- None Alien Tech Used ----------------- None Achievements -------------- A Problem For Future Me Oops Resistances Are Futile Unlikely Earthworm Challenges ------------ None Game ------ Seed UtilityMachineMatter Manual? 0 Play Time 00:19:27 Cumulative 4.7 hours Start 2026.01.02 @ 00:05:31 End 2026.01.02 @ 00:25:01 Sessions 1 Manual Loads 0 Difficulty Rogue Special Mode None Game No. 9 Rogue 6 Adventurer 3 Explorer 0 Win Type - Total 0 Types 0/0/0/0/0/0/0/0/0/0 Lore% 3 Gallery% 10 Achievement% 8 Wizard Run 0 Options --------- Layout 1 ASCII 0 Keyboard 0 Movement Mouse Keybinds 0 Fullscreen 1 Font 20/SmallcapsGlow Map View 55x45 Zoom Use 0% Tactical HUD 1 Map Filters NONE Filters NONE Steam 1 RUN: 8861e98f-9b67-4fdb-9e65-7433d4010511